[Event "GER-ch Youth-U12 2022"]
[Site "Willingen"]
[Date "2022.06.05"]
[Round "2.1"]
[White "Sydykov Bayastan"]
[Black "Neuhoff, Laertes"]
[Result "1-0"]
[ECO "C68"]
[WhiteElo "1477"]
[BlackElo "1990"]
[Annotator "TA"]
[PlyCount "129"]
[EventDate "2022.06.05"]
[EventType "swiss"]
[EventRounds "9"]
[EventCountry "GER"]
[SourceTitle "playchess.com"]
[Source "ChessBase"]
[SourceQuality "1"]
[TimeControl "40/4500+30:900+30"]

{[%evp 19,129,-7,-6,-7,0,0,0,0,0,0,0,0,16,6,10,23,48,39,46,1,0,8,47,62,89,46,100,0,11,0,0,0,393,377,328,200,209,178,397,391,418,409,593,589,539,502,520,489,445,440,1225,1217,1175,1120,951,835,1454,1422,1041,962,2737,2087,1322,69,12832,12835,12833,12835,12835,12836,1741,8324,6721,0,0,0,0,0,12843,12842,12845,12846,12846,12847,12847,12847,12847,12847,12850,12850,27999,27999,27999,27999,27997,27995,27996,27996,27999,27998,27999,27999,27983,27983,27989,27988,27991,27991,27997,27997,27998,27998]} 1. e4 {[%emt 0:00:00]} e5 {[%emt 0:00:00]} 2. Nf3 {[%emt 0:00:00]} Nc6 {[%emt 0:00:00]} 3. Bb5 {[%emt 0:00:00]} a6 {[%emt 0:00:00]} 4. Bxc6 {[%emt 0:00:00]} dxc6 {[%emt 0:00:00]} 5. O-O {[%emt 0:00:00]} Bg4 {[%emt 0:00:00]} 6. h3 {[%emt 0:00:00]} h5 {[%emt 0:00:00]} 7. d3 {[%emt 0:00:00]} Qf6 {[%emt 0:00:00]} 8. Be3 {[%emt 0:00:00]} Bxf3 {[%emt 0:00:00]} 9. Qxf3 {[%emt 0:00:00]} Qxf3 {[%emt 0:00:00]} 10. gxf3 {[%emt 0:00:00]} Bd6 {[%emt 0:00:00]} 11. Nd2 {[%emt 0:00:00] C68: Ruy Lopez: Exchange Variation, sidelines.} O-O-O {[%emt 0:00:23]} 12. Nc4 {[%emt 0:00:00]} Ne7 {[%emt 0:13:33]} 13. f4 {[%emt 0:00:00] The position is equal.} exf4 {[%emt 0:03:20]} 14. Nxd6+ {[%emt 0:00:00]} cxd6 {[%emt 0:01:08][%cal Bc7d6,Bd6d5][%mdl 32]} 15. Bxf4 {[%emt 0:00:00]} d5 {[%emt 0:03:48]} 16. f3 {[%emt 0:00:00] [#]} Rhe8 $146 {[%emt 0:05:48]} ({Predecessor:} 16... Rhg8 17. Kh2 g5 18. Be5 Rg6 19. Rf2 f6 20. Bc3 c5 21. Rg1 Rdg8 22. Rfg2 Kd7 {1-0 (32) Kessler,L (2249)-Lien,K (2011) Al Ain 2013}) 17. Rae1 {[%emt 0:04:46]} a5 {[%emt 0:08:18]} 18. Be3 {[%emt 0:10:16]} Kc7 {[%emt 0:03:13] Inhibits Bb6+.} 19. f4 {[%emt 0:05:06]} dxe4 {[%emt 0:20:02]} 20. dxe4 {[%emt 0:00:18]} f5 {[%emt 0:00:14]} 21. e5 {[%emt 0:01:18]} Nd5 {[%emt 0:00:09]} 22. Bd2 {[%emt 0:00:50]} Nb4 {[%emt 0:00:34]} ({Black should play} 22... b6 $14) 23. Bxb4 {[%emt 0:01:17]} (23. Re2 $16) 23... axb4 $11 {[%emt 0:00:06]} 24. Rd1 {[%emt 0:04:13]} Rxd1 {[%emt 0:02:13]} 25. Rxd1 {[%emt 0:00:07][%mdl 4096] Endgame KR-KR} g5 $2 {[%emt 0:00:56][%mdl 8192] [#]} (25... Ra8 $11 {and Black is okay.}) 26. fxg5 $18 {[%emt 0:08:27]} Rxe5 {[%emt 0:00:15]} 27. Rd4 {[%emt 0:00:17]} f4 {[%emt 0:04:10]} 28. h4 {[%emt 0:00:13]} ({Worse is} 28. Rxf4 Rxg5+ 29. Kh2 Rc5 30. Rxb4 Rxc2+ 31. Kg3 b5 $11) 28... Rf5 $2 {[%emt 0:02:28]} (28... Re2 29. Rxf4 Kd6 30. Rxb4 b5) 29. Rxb4 {[%emt 0:00:48]} f3 {[%emt 0:00:17]} 30. Kf2 {[%emt 0:00:42]} c5 {[%emt 0:09:03]} (30... Rf8 {is a better defense.} 31. Rd4 Rf5) 31. Re4 {[%emt 0:01:43]} Kd6 {[%emt 0:05:17]} 32. c4 {[%emt 0:00:23]} Kd7 {[%emt 0:02:04]} 33. b3 {[%emt 0:00:49]} b6 {[%emt 0:00:56]} 34. a4 {[%emt 0:00:42]} Rf8 {[%emt 0:00:47]} (34... Kd6 $142 35. Re8 Rf4) 35. Re5 {[%emt 0:01:18]} Kd6 {[%emt 0:01:28]} 36. Rd5+ {[%emt 0:00:21]} Ke6 {[%emt 0:00:28]} 37. a5 {[%emt 0:00:43]} Rb8 {[%emt 0:01:15]} 38. axb6 {[%emt 0:01:17]} Rxb6 {[%emt 0:00:04]} 39. Rxc5 {[%emt 0:00:09]} Rxb3 {[%emt 0:00:07]} 40. Rc6+ {[%emt 0:01:49]} Kf5 {[%emt 0:01:08]} 41. Rf6+ $2 {[%emt 0:15:46]} ({White must play} 41. g6 $18 {Hoping for g7.} Rb7 42. Kxf3) 41... Kg4 $2 {[%emt 0:02:29][%mdl 8192]} (41... Ke4 $14) 42. g6 {[%emt 0:00:00]} Rb2+ {[%emt 0:03:25]} 43. Ke3 {[%emt 0:00:00]} Re2+ {[%emt 0:02:33]} 44. Kd3 {[%emt 0:00:00]} Re8 {[%emt 0:03:44]} 45. c5 {[%emt 0:00:00]} Kg3 {[%emt 0:03:27]} 46. c6 $2 {[%emt 0:00:00]} (46. g7 $18 Rg8 47. Rg6+ Kf2 48. c6) 46... f2 $11 {[%emt 0:01:03]} 47. c7 {[%emt 0:00:00] [#] Threatens to win with Kd4.} Kg2 $1 {[%emt 0:01:52]} 48. Kd4 {[%emt 0:00:00] And now Kd5 would win.} Rg8 $2 {[%emt 0:01:31][%mdl 8192] Black is now going downhill.} (48... f1=R $11 49. Rxf1 Kxf1) 49. Ke5 {[%emt 0:00:00]} f1=Q {[%emt 0:00:35]} 50. Rxf1 {[%emt 0:00:00]} Kxf1 $18 {[%emt 0:00:13] KR-K3P} 51. g7 {[%emt 0:00:00]} Kf2 {[%emt 0:00:37]} 52. Ke6 {[%emt 0:00:00]} Rc8 {[%emt 0:00:39]} 53. Kd7 {[%emt 0:00:00]} Rg8 {[%emt 0:00:10]} 54. c8=Q {[%emt 0:00:00]} Rxg7+ {[%emt 0:00:07] KQ-KR} 55. Ke6 {[%emt 0:00:00] White mates.} Rg4 {[%emt 0:00:23]} 56. Qc5+ {[%emt 0:00:00]} Kg3 {[%emt 0:00:14]} 57. Qe3+ {[%emt 0:00:00]} Kxh4 {[%emt 0:00:31]} 58. Kf5 {[%emt 0:00:00]} Rg3 {[%emt 0:00:58]} 59. Qe4+ {[%emt 0:00:00]} Rg4 {[%emt 0:00:27]} 60. Qh1+ {[%emt 0:00:00]} Kg3 {[%emt 0:00:04]} 61. Qxh5 {[%emt 0:00:00]} Rg8 {[%emt 0:01:23]} 62. Ke4 {[%emt 0:00:00]} Rg4+ {[%emt 0:00:37]} 63. Ke3 {[%emt 0:00:00]} Rg8 {[%emt 0:00:40]} 64. Qf3+ {[%emt 0:00:00]} Kh4 {[%emt 0:00:18]} 65. Qh1+ {[%emt 0:00:00] Weighted Error Value: White=0.53/Black=0.68} 1-0

[Event "GER-ch Youth-U12 2022"]
[Site "Willingen"]
[Date "2022.06.05"]
[Round "2.2"]
[White "Nechitailo, Nikita"]
[Black "Skembris, Simon Max"]
[Result "1/2-1/2"]
[ECO "B21"]
[WhiteElo "1371"]
[BlackElo "1413"]
[Annotator "NA RC COMBH"]
[PlyCount "134"]
[EventDate "2022.06.05"]
[EventType "swiss"]
[EventRounds "9"]
[EventCountry "GER"]
[SourceTitle "playchess.com"]
[Source "ChessBase"]
[SourceQuality "1"]
[TimeControl "40/4500+30:900+30"]

1. e4 {[%emt 0:00:00]} c5 {[%emt 0:00:00]} 2. d4 {[%emt 0:00:00]} cxd4 {[%emt 0:00:00]} 3. c3 {[%emt 0:00:00]} dxc3 {[%emt 0:00:00]} 4. Nxc3 {[%emt 0:00:00]} a6 {[%emt 0:00:00]} 5. Bf4 {[%emt 0:00:00]} e6 {[%emt 0:00:00]} 6. Rc1 {[%emt 0:00:00]} b5 {[%emt 0:00:00]} 7. Bxb5 {[%emt 0:00:00]} axb5 {[%emt 0:00:00]} 8. Nxb5 {[%emt 0:00:00]} Qa5+ {[%emt 0:00:00]} 9. Bd2 {[%emt 0:00:00]} Qxb5 {[%emt 0:00:00]} 10. Rxc8+ {[%emt 0:00:00]} Ke7 {[%emt 0:00:00]} 11. a3 {[%emt 0:00:34]} Ra6 {[%emt 0:01:04]} 12. Bb4+ {[%emt 0:04:19]} d6 {[%emt 0:00:30]} 13. Nf3 {[%emt 0:08:23]} Nd7 {[%emt 0:06:23]} 14. Nd4 {[%emt 0:12:17]} Qe5 {[%emt 0:09:52]} 15. Qd3 {[%emt 0:01:44]} Ngf6 {[%emt 0:09:54]} 16. Qxa6 {[%emt 0:01:57]} Qxd4 {[%emt 0:01:18]} 17. O-O {[%emt 0:00:22]} Nxe4 {[%emt 0:01:49]} 18. Qa5 {[%emt 0:03:43]} Qb6 {[%emt 0:02:45]} 19. Qa8 {[%emt 0:00:49]} f5 {[%emt 0:02:03]} 20. Re8+ {[%emt 0:03:02]} Kf7 {[%emt 0:00:51]} 21. Qc8 {[%emt 0:02:29]} Qa7 {[%emt 0:06:09]} 22. Rd8 {[%emt 0:02:01]} Ndf6 {[%emt 0:01:26]} 23. Bc3 {[%emt 0:03:53]} Nxc3 {[%emt 0:02:16]} 24. bxc3 {[%emt 0:00:55]} Qxa3 {[%emt 0:02:59]} 25. Re1 {[%emt 0:00:45]} Ne4 {[%emt 0:01:07]} 26. Re8 {[%emt 0:10:27]} Qa2 {[%emt 0:05:03]} 27. Qd7+ {[%emt 0:10:21]} Kf6 {[%emt 0:00:44]} 28. Qd8+ {[%emt 0:00:30]} Kf7 {[%emt 0:01:01]} 29. Qd7+ {[%emt 0:00:46]} Kf6 {[%emt 0:03:43]} 30. Qd8+ {[%emt 0:00:51]} Kg6 {[%emt 0:01:00]} 31. Rf1 {[%emt 0:01:19]} Nxc3 {[%emt 0:01:46]} 32. Rxf8 {[%emt 0:00:49]} Rxf8 {[%emt 0:00:08]} 33. Qxf8 {[%emt 0:00:09]} Ne4 {[%emt 0:01:01]} 34. h4 {[%emt 0:02:52]} Qd5 {[%emt 0:02:33]} 35. Qe8+ {[%emt 0:06:21]} Kh6 {[%emt 0:00:34]} 36. Qf7 {[%emt 0:01:27]} Nc5 {[%emt 0:08:17]} 37. Qe7 {[%emt 0:04:35]} Ne4 {[%emt 0:01:45]} 38. Re1 {[%emt 0:01:51]} Kg6 {[%emt 0:02:17]} 39. f3 {[%emt 0:01:37]} Qd4+ {[%emt 0:04:10]} 40. Kh1 {[%emt 0:02:23]} Nf6 {[%emt 0:01:44]} 41. Qxe6 {[%emt 0:15:39]} Qxh4+ {[%emt 0:16:01]} 42. Kg1 {[%emt 0:00:00]} Qg3 {[%emt 0:00:00]} 43. Rd1 {[%emt 0:00:00]} h5 {[%emt 0:00:00]} 44. Rxd6 {[%emt 0:00:00]} h4 {[%emt 0:00:00]} 45. Qe8+ {[%emt 0:00:00]} Kh6 {[%emt 0:00:00]} 46. Qe3+ {[%emt 0:00:00]} Kh5 {[%emt 0:00:00]} 47. Rd8 {[%emt 0:00:00]} Kg6 {[%emt 0:00:00]} 48. Qf2 {[%emt 0:00:00]} Nh5 {[%emt 0:00:00]} 49. Rd4 {[%emt 0:00:00]} Qxf2+ {[%emt 0:00:00]} 50. Kxf2 {[%emt 0:00:00]} Kg5 {[%emt 0:00:00]} 51. Ke3 {[%emt 0:00:00]} Ng3 {[%emt 0:00:00]} 52. f4+ {[%emt 0:00:00]} Kg4 {[%emt 0:00:00]} 53. Rd7 {[%emt 0:00:00]} Nh5 {[%emt 0:00:00]} 54. Rf7 {[%emt 0:00:00]} g6 {[%emt 0:00:00]} 55. Rh7 {[%emt 0:00:00]} Nxf4 {[%emt 0:00:00]} 56. Rxh4+ {[%emt 0:00:00]} Kxh4 {[%emt 0:00:00]} 57. Kxf4 {[%emt 0:00:00]} Kh5 {[%emt 0:00:00]} 58. g3 {[%emt 0:00:00]} Kh6 {[%emt 0:00:00]} 59. g4 {[%emt 0:00:00]} fxg4 {[%emt 0:00:00]} 60. Kxg4 {[%emt 0:00:00]} g5 {[%emt 0:00:00]} 61. Kh3 {[%emt 0:00:00]} Kh5 {[%emt 0:00:00]} 62. Kg3 {[%emt 0:00:00]} g4 {[%emt 0:00:00]} 63. Kh2 {[%emt 0:00:00]} Kh4 {[%emt 0:00:00]} 64. Kg2 {[%emt 0:00:00]} g3 {[%emt 0:00:00]} 65. Kg1 {[%emt 0:00:00]} Kg4 {[%emt 0:00:00]} 66. Kg2 {[%emt 0:00:00]} Kf4 {[%emt 0:00:00]} 67. Kg1 {[%emt 0:00:00]} Ke5 {[%emt 0:02:29]} 1/2-1/2

[Event "GER-ch Youth-U12 2022"]
[Site "Willingen"]
[Date "2022.06.05"]
[Round "2.3"]
[White "Herrmann, Arthur"]
[Black "Korchynskyi, Mykola"]
[Result "1-0"]
[ECO "B55"]
[WhiteElo "1507"]
[BlackElo "1723"]
[Annotator "NA RC COMBH"]
[PlyCount "59"]
[EventDate "2022.06.05"]
[EventType "swiss"]
[EventRounds "9"]
[EventCountry "GER"]
[SourceTitle "playchess.com"]
[Source "ChessBase"]
[SourceQuality "1"]
[TimeControl "40/4500+30:900+30"]

1. e4 {[%emt 0:00:00]} c5 {[%emt 0:00:00]} 2. Nf3 {[%emt 0:00:00]} d6 {[%emt 0:00:00]} 3. d4 {[%emt 0:00:00]} cxd4 {[%emt 0:00:00]} 4. Nxd4 {[%emt 0:00:00]} Nf6 {[%emt 0:00:00]} 5. f3 {[%emt 0:00:00]} a6 {[%emt 0:00:00]} 6. c4 {[%emt 0:00:00]} e5 {[%emt 0:00:00]} 7. Nc2 {[%emt 0:00:00]} Be6 {[%emt 0:00:00]} 8. Nc3 {[%emt 0:00:00]} Be7 {[%emt 0:01:02]} 9. Be2 {[%emt 0:00:00]} O-O {[%emt 0:00:50]} 10. Be3 {[%emt 0:00:00]} Nbd7 {[%emt 0:01:21]} 11. O-O {[%emt 0:01:25]} Rc8 {[%emt 0:04:02]} 12. Nd5 {[%emt 0:03:13]} Ne8 {[%emt 0:02:31]} 13. Qd2 {[%emt 0:08:34]} f5 {[%emt 0:03:26]} 14. exf5 {[%emt 0:08:33]} Bxf5 {[%emt 0:02:48]} 15. Ncb4 {[%emt 0:09:22]} Be6 {[%emt 0:02:28]} 16. Rfd1 {[%emt 0:03:32]} Kh8 {[%emt 0:11:15]} 17. Rac1 {[%emt 0:03:42]} Ndf6 {[%emt 0:07:42]} 18. Bb6 {[%emt 0:03:33]} Qd7 {[%emt 0:00:10]} 19. Nxe7 {[%emt 0:03:36]} Qxe7 {[%emt 0:00:03]} 20. Qe3 {[%emt 0:04:12]} Nd7 {[%emt 0:02:30]} 21. Rc3 {[%emt 0:10:13]} Qf7 {[%emt 0:02:45]} 22. b3 {[%emt 0:06:57]} Qg6 {[%emt 0:05:13]} 23. Bd3 {[%emt 0:02:18]} Bf5 {[%emt 0:04:18]} 24. Nd5 {[%emt 0:02:08]} Qe6 {[%emt 0:02:59]} 25. Bxf5 {[%emt 0:02:59]} Rxf5 {[%emt 0:00:07]} 26. Qd3 {[%emt 0:02:59]} Rf8 {[%emt 0:05:22]} 27. b4 {[%emt 0:03:38]} h6 {[%emt 0:13:34]} 28. Be3 {[%emt 0:01:17]} Ndf6 {[%emt 0:01:39]} 29. Qg6 {[%emt 0:01:02]} Nd7 {[%emt 0:05:06]} 30. Nb6 {[%emt 0:01:25]} 1-0

[Event "GER-ch Youth-U12 2022"]
[Site "Willingen"]
[Date "2022.06.05"]
[Round "2.4"]
[White "Gloeckler, Christian"]
[Black "Noennig, Jakob"]
[Result "1-0"]
[ECO "C79"]
[WhiteElo "1869"]
[BlackElo "1556"]
[Annotator "NA RC COMBH"]
[PlyCount "91"]
[EventDate "2022.06.05"]
[EventType "swiss"]
[EventRounds "9"]
[EventCountry "GER"]
[SourceTitle "playchess.com"]
[Source "ChessBase"]
[SourceQuality "1"]
[TimeControl "40/4500+30:900+30"]

1. e4 {[%emt 0:00:00]} e5 {[%emt 0:00:00]} 2. Nf3 {[%emt 0:00:00]} Nc6 {[%emt 0:00:00]} 3. Bb5 {[%emt 0:00:00]} a6 {[%emt 0:00:00]} 4. Ba4 {[%emt 0:00:00]} Nf6 {[%emt 0:00:00]} 5. O-O {[%emt 0:00:00]} d6 {[%emt 0:00:00]} 6. d4 {[%emt 0:00:00]} b5 {[%emt 0:00:00]} 7. Bb3 {[%emt 0:00:00]} Bg4 $11 {[%emt 0:00:00]} (7... Nxe4 $2 8. Bd5 Bb7 9. Bxe4 $18) 8. c3 {[%emt 0:00:00]} Bxf3 {[%emt 0:02:39]} 9. gxf3 {[%emt 0:00:00]} g5 {[%emt 0:22:22]} 10. a4 {[%emt 0:00:00]} Rg8 {[%emt 0:01:38]} 11. Kh1 {[%emt 0:00:00]} Rb8 {[%emt 0:03:57]} 12. Be3 {[%emt 0:01:54]} Nh5 {[%emt 0:04:01]} 13. axb5 {[%emt 0:02:45]} axb5 {[%emt 0:00:10]} 14. Rg1 {[%emt 0:00:12]} Qf6 {[%emt 0:02:53]} 15. Rg4 {[%emt 0:07:39]} Rg6 {[%emt 0:01:11]} 16. Ra6 {[%emt 0:01:42]} Nd8 {[%emt 0:04:47]} 17. d5 {[%emt 0:02:03]} Rb7 {[%emt 0:04:02]} 18. Na3 {[%emt 0:01:25]} Be7 {[%emt 0:01:40]} 19. Nxb5 {[%emt 0:01:29]} Kf8 {[%emt 0:02:59]} 20. Bc4 {[%emt 0:01:54]} Kg7 {[%emt 0:02:20]} 21. b4 {[%emt 0:02:35]} h6 {[%emt 0:03:35]} 22. Be2 {[%emt 0:02:58]} Kh7 {[%emt 0:03:05]} 23. c4 {[%emt 0:06:00]} Bf8 {[%emt 0:02:05]} 24. c5 {[%emt 0:01:20]} Qe7 {[%emt 0:01:16]} 25. c6 {[%emt 0:00:37]} Rb8 {[%emt 0:00:17]} 26. Ra7 {[%emt 0:00:34]} Rc8 {[%emt 0:00:17]} 27. Qa1 {[%emt 0:01:43]} Nf4 {[%emt 0:01:33]} 28. Qa6 {[%emt 0:04:39]} h5 {[%emt 0:05:24]} 29. Bxf4 {[%emt 0:11:40]} hxg4 {[%emt 0:02:13]} 30. Qxc8 {[%emt 0:00:39]} gxf4 {[%emt 0:00:28]} 31. fxg4 {[%emt 0:02:20]} Qh4 {[%emt 0:00:32]} 32. Kg1 {[%emt 0:01:22]} Qh3 {[%emt 0:02:20]} 33. Qf5 {[%emt 0:01:27]} Be7 {[%emt 0:04:55]} 34. Rxc7 {[%emt 0:06:22]} Kg7 {[%emt 0:01:07]} 35. Rxe7 {[%emt 0:03:10]} Rh6 {[%emt 0:00:14]} 36. Qg5+ {[%emt 0:00:27]} Kh7 {[%emt 0:00:16]} 37. Qxh6+ {[%emt 0:01:08]} Kxh6 {[%emt 0:02:48]} 38. c7 {[%emt 0:00:12]} f3 {[%emt 0:03:20]} 39. Bxf3 {[%emt 0:00:14]} Qxf3 {[%emt 0:00:09]} 40. c8=Q {[%emt 0:00:13]} Ne6 {[%emt 0:02:58]} 41. Rxe6+ {[%emt 0:16:38]} fxe6 {[%emt 0:15:17]} 42. Qxe6+ {[%emt 0:00:12]} Kg7 {[%emt 0:00:31]} 43. Nxd6 {[%emt 0:00:15]} Qe2 {[%emt 0:01:05]} 44. Nf5+ {[%emt 0:00:25]} Kh7 {[%emt 0:00:42]} 45. Qf7+ {[%emt 0:00:07]} Kh8 {[%emt 0:00:11]} 46. Qg7# {[%emt 0:00:06]} 1-0

[Event "GER-ch Youth-U12 2022"]
[Site "Willingen"]
[Date "2022.06.05"]
[Round "2.5"]
[White "Limmer, Marco"]
[Black "Zhuikov, Edgard"]
[Result "1/2-1/2"]
[ECO "C55"]
[WhiteElo "1825"]
[BlackElo "1892"]
[Annotator "NA RC COMBH"]
[PlyCount "120"]
[EventDate "2022.06.05"]
[EventType "swiss"]
[EventRounds "9"]
[EventCountry "GER"]
[SourceTitle "playchess.com"]
[Source "ChessBase"]
[SourceQuality "1"]
[TimeControl "40/4500+30:900+30"]

1. e4 {[%emt 0:00:00]} e5 {[%emt 0:00:00]} 2. Nf3 {[%emt 0:00:00]} Nc6 {[%emt 0:00:00]} 3. Bc4 {[%emt 0:00:00]} Nf6 {[%emt 0:00:00]} 4. d3 {[%emt 0:00:00]} h6 {[%emt 0:00:00]} 5. c3 {[%emt 0:00:00]} d6 {[%emt 0:00:00]} 6. Nbd2 {[%emt 0:00:00]} g5 {[%emt 0:00:00]} 7. h3 {[%emt 0:00:00]} Bg7 {[%emt 0:00:00]} 8. Nf1 {[%emt 0:00:00]} Be6 {[%emt 0:00:00]} 9. Bxe6 {[%emt 0:00:00]} fxe6 $14 {[%emt 0:00:00]} 10. Qb3 {[%emt 0:00:00]} Qc8 {[%emt 0:00:00]} 11. Ng3 {[%emt 0:00:00]} b6 {[%emt 0:00:00]} 12. d4 {[%emt 0:00:00]} exd4 {[%emt 0:00:00]} 13. cxd4 {[%emt 0:03:27]} Na5 {[%emt 0:00:00]} 14. Qd3 {[%emt 0:01:16]} Qd7 {[%emt 0:00:00]} 15. e5 {[%emt 0:02:37]} (15. O-O $16) 15... Nd5 {[%emt 0:00:00]} 16. Nh5 {[%emt 0:02:03]} O-O-O {[%emt 0:00:00]} 17. Bd2 {[%emt 0:02:39]} Nc6 {[%emt 0:01:40]} 18. Rc1 {[%emt 0:03:20]} Kb7 {[%emt 0:00:00]} 19. exd6 {[%emt 0:02:26]} cxd6 {[%emt 0:00:00]} 20. O-O {[%emt 0:02:11]} Rhg8 {[%emt 0:00:00]} 21. Rfe1 {[%emt 0:02:22]} Qf7 {[%emt 0:00:00]} 22. Ng3 {[%emt 0:03:26]} Rc8 {[%emt 0:02:02]} 23. Ne4 {[%emt 0:03:22]} Rgd8 {[%emt 0:00:22]} 24. a4 {[%emt 0:03:21]} e5 {[%emt 0:01:17]} 25. Qa3 {[%emt 0:02:09]} Bf8 {[%emt 0:02:10]} 26. Qd3 {[%emt 0:03:51]} Nf4 {[%emt 0:00:54]} 27. Bxf4 {[%emt 0:03:45]} exf4 {[%emt 0:00:50]} 28. Nc3 {[%emt 0:07:10]} Bg7 {[%emt 0:01:48]} 29. Re2 {[%emt 0:02:56]} a6 {[%emt 0:01:43]} 30. Rce1 {[%emt 0:02:33]} Re8 {[%emt 0:00:48]} 31. Ne4 {[%emt 0:01:43]} Bf8 {[%emt 0:02:04]} 32. Nc3 {[%emt 0:04:23]} Rxe2 {[%emt 0:01:35]} 33. Qxe2 {[%emt 0:02:14]} Bg7 {[%emt 0:02:07]} 34. d5 {[%emt 0:02:27]} Ne5 {[%emt 0:00:44]} 35. Ne4 {[%emt 0:04:27]} Nxf3+ {[%emt 0:03:38]} 36. Qxf3 {[%emt 0:00:19]} Be5 {[%emt 0:01:22]} 37. Nc3 {[%emt 0:01:03]} Qg7 {[%emt 0:01:49]} 38. Rc1 {[%emt 0:02:40]} a5 {[%emt 0:02:09]} 39. Qd3 {[%emt 0:00:52]} Bxc3 {[%emt 0:00:41]} 40. Rxc3 {[%emt 0:00:16]} Rxc3 {[%emt 0:00:12]} 41. bxc3 {[%emt 0:15:06]} Qd7 {[%emt 0:15:27]} 42. Qc4 {[%emt 0:02:34]} Qc8 {[%emt 0:01:35]} 43. Qd3 {[%emt 0:01:18]} Qd7 {[%emt 0:01:13]} 44. Qc4 {[%emt 0:00:31]} Qc7 {[%emt 0:01:49]} 45. Qd3 {[%emt 0:01:16]} Qe7 {[%emt 0:00:21]} 46. Qg6 {[%emt 0:01:51]} Qe1+ {[%emt 0:01:59]} 47. Kh2 {[%emt 0:00:06]} Qxf2 {[%emt 0:00:31]} 48. Qxd6 {[%emt 0:00:31]} Qg3+ {[%emt 0:00:24]} 49. Kh1 {[%emt 0:00:18]} Qxc3 {[%emt 0:00:10]} 50. Qxh6 {[%emt 0:00:58]} Qa1+ {[%emt 0:00:23]} 51. Kh2 {[%emt 0:00:06]} Qxa4 {[%emt 0:00:04]} 52. Qxg5 {[%emt 0:01:21]} Qd7 {[%emt 0:01:04]} 53. Qe5 {[%emt 0:01:05]} Qf7 {[%emt 0:00:35]} 54. h4 {[%emt 0:02:49]} f3 {[%emt 0:00:21]} 55. gxf3 {[%emt 0:00:46]} Qxf3 {[%emt 0:00:08]} 56. Qe7+ {[%emt 0:00:11]} Ka6 {[%emt 0:00:14]} 57. d6 {[%emt 0:00:17]} Qf2+ {[%emt 0:00:42]} 58. Kh3 {[%emt 0:00:06]} Qf3+ {[%emt 0:00:36]} 59. Kh2 {[%emt 0:00:07]} Kb5 {[%emt 0:00:30]} 60. d7 {[%emt 0:00:30]} Qf2+ {[%emt 0:00:29]} 1/2-1/2

[Event "GER-ch Youth-U12 2022"]
[Site "Willingen"]
[Date "2022.06.05"]
[Round "2.6"]
[White "Malinowsky, Levi"]
[Black "Blodig, Vincent"]
[Result "1-0"]
[ECO "A06"]
[WhiteElo "1816"]
[BlackElo "1461"]
[Annotator "NA RC COMBH"]
[PlyCount "120"]
[EventDate "2022.06.05"]
[EventType "swiss"]
[EventRounds "9"]
[EventCountry "GER"]
[SourceTitle "playchess.com"]
[Source "ChessBase"]
[SourceQuality "1"]
[TimeControl "40/4500+30:900+30"]

1. Nf3 {[%emt 0:00:00]} d5 {[%emt 0:00:00]} 2. d3 {[%emt 0:00:00]} Nf6 {[%emt 0:00:00]} 3. Nbd2 {[%emt 0:00:00]} c5 {[%emt 0:00:00]} 4. e4 {[%emt 0:00:00]} d4 {[%emt 0:00:00]} 5. h3 {[%emt 0:00:00]} Nc6 {[%emt 0:00:00]} 6. g4 {[%emt 0:00:00]} (6. Nc4 $11) 6... g6 {[%emt 0:00:00]} 7. Bg2 {[%emt 0:00:00]} Bg7 {[%emt 0:00:00]} 8. O-O {[%emt 0:00:57]} h5 {[%emt 0:02:19]} 9. g5 {[%emt 0:01:07]} Nd7 {[%emt 0:00:55]} 10. Ne1 $15 {[%emt 0:03:35]} e5 {[%emt 0:01:20]} 11. f4 {[%emt 0:02:10]} exf4 {[%emt 0:00:22]} 12. Ndf3 {[%emt 0:07:39]} Nde5 {[%emt 0:02:20]} 13. Bxf4 {[%emt 0:01:36]} O-O {[%emt 0:02:44]} 14. Qd2 {[%emt 0:01:56]} Be6 {[%emt 0:01:49]} 15. c3 {[%emt 0:03:27]} Qa5 {[%emt 0:12:14]} 16. Nxe5 {[%emt 0:14:12]} Bxe5 {[%emt 0:02:02]} 17. Bxe5 {[%emt 0:00:28]} Nxe5 {[%emt 0:00:15]} 18. Qf4 {[%emt 0:12:46]} Nc6 {[%emt 0:04:45]} 19. cxd4 {[%emt 0:09:51]} Nxd4 {[%emt 0:00:41]} 20. Qf2 {[%emt 0:06:16]} Nb3 {[%emt 0:03:28]} 21. Rd1 {[%emt 0:01:15]} Qxa2 {[%emt 0:02:03]} 22. Nf3 {[%emt 0:03:29]} Qa6 {[%emt 0:05:01]} 23. Ne5 {[%emt 0:02:09]} Nd4 {[%emt 0:02:12]} 24. Qf6 {[%emt 0:02:53]} Kh7 {[%emt 0:02:56]} 25. Qe7 {[%emt 0:01:20]} Rae8 {[%emt 0:16:46]} 26. Qxc5 {[%emt 0:00:37]} Nb3 {[%emt 0:02:10]} 27. Qb4 {[%emt 0:01:22]} b5 {[%emt 0:06:48]} 28. d4 {[%emt 0:00:48]} Qb6 {[%emt 0:00:13]} 29. Kh1 {[%emt 0:00:32]} a5 {[%emt 0:00:35]} 30. Qc3 {[%emt 0:00:14]} b4 {[%emt 0:00:29]} 31. Qd3 {[%emt 0:00:47]} Qc7 {[%emt 0:01:00]} 32. Rf6 {[%emt 0:00:55]} a4 {[%emt 0:01:45]} 33. Rdf1 {[%emt 0:01:41]} a3 {[%emt 0:02:37]} 34. Rxe6 {[%emt 0:02:04]} fxe6 {[%emt 0:01:48]} 35. Qxb3 {[%emt 0:00:59]} Rxf1+ {[%emt 0:00:16]} 36. Bxf1 {[%emt 0:00:06]} Qc1 {[%emt 0:00:32]} 37. Qf3 {[%emt 0:00:31]} Re7 {[%emt 0:01:03]} 38. Nxg6 {[%emt 0:02:44]} Qxg5 {[%emt 0:04:38]} 39. Nxe7 {[%emt 0:00:23]} a2 {[%emt 0:00:13]} 40. Qf7+ {[%emt 0:01:26]} Qg7 {[%emt 0:00:09]} 41. Qxh5+ {[%emt 0:15:56]} Qh6 {[%emt 0:15:10]} 42. Qg4 {[%emt 0:00:00]} Qf6 {[%emt 0:00:00]} 43. Qd1 {[%emt 0:00:00]} Qxe7 {[%emt 0:00:00]} 44. Bc4 {[%emt 0:00:00]} Qa7 {[%emt 0:00:00]} 45. Bxa2 {[%emt 0:00:00]} Qxa2 {[%emt 0:00:00]} 46. Qe2 {[%emt 0:00:00]} Qa7 {[%emt 0:00:00]} 47. Qd2 {[%emt 0:00:00]} b3 {[%emt 0:00:00]} 48. Kg2 {[%emt 0:00:00]} Qf7 {[%emt 0:00:00]} 49. Qe3 {[%emt 0:00:00]} Qg7+ {[%emt 0:00:00]} 50. Kf2 {[%emt 0:00:00]} Qf8+ {[%emt 0:00:00]} 51. Ke2 {[%emt 0:00:00]} Qb4 {[%emt 0:00:00]} 52. d5 {[%emt 0:00:00]} e5 {[%emt 0:00:00]} 53. Qd3 {[%emt 0:00:00]} Kg6 {[%emt 0:00:00]} 54. d6 {[%emt 0:00:00]} Qb6 {[%emt 0:00:00]} 55. d7 {[%emt 0:00:00]} Qd8 {[%emt 0:00:00]} 56. Qd6+ {[%emt 0:00:00]} Kh7 {[%emt 0:00:00]} 57. Qe6 {[%emt 0:00:25]} Qh4 {[%emt 0:00:00]} 58. Qg4 {[%emt 0:00:28]} Qe7 {[%emt 0:00:00]} 59. Qh5+ {[%emt 0:00:14]} Kg7 {[%emt 0:00:00]} 60. Qe8 {[%emt 0:00:15]} Qd8 {[%emt 0:00:21]} 1-0